bitfinex/quotes_ETHUSD_20251011
["timestamp","ask_amount","ask_price","bid_price","bid_amount"]
[1760160484791,0.099,3778.0,3776.5,0.4444]
[1760160485135,0.099,3778.0,3777.9,2.64697318]
[1760160485289,0.099,3778.2,3777.9,2.64697318]
[1760160485489,0.099,3778.5,3778.2,2.646763]
[1760160485693,0.099,3778.8,3777.1,2.64751268]
[1760160485925,0.099,3779.3,3776.9,0.4444]
[1760160486124,0.099,3779.3,3778.9,2.64626617]
[1760160486348,0.099,3780.5,3778.4,0.4444]
[1760160486646,0.099,3780.4,3778.4,0.4444]
[1760160486824,0.106,3782.0,3778.4,0.4444]
[1760160487159,0.099,3781.5,3778.4,0.4444]
[1760160487319,0.106,3782.0,3778.4,0.4444]
[1760160487320,0.099,3781.4,3778.6,1.92]
[1760160487519,0.099,3781.3,3780.3,2.64525525]
[1760160487825,0.099,3781.2,3778.3,0.468]
[1760160488024,0.099,3781.1,3780.1,2.64536288]
[1760160488224,0.099,3781.1,3778.2,2.1364]
[1760160488225,0.099,3781.1,3780.2,2.64530142]
[1760160488531,0.099,3781.1,3779.0,2.64620269]
[1760160488729,0.106,3782.0,3779.1,0.468]
[1760160489047,0.099,3781.9,3780.9,2.64486007]
[1760160489363,0.106,3782.0,3778.8,1.92]
[1760160489364,0.099,3781.8,3778.8,1.92]
[1760160489517,2.74336579,3781.7,3780.4,2.64515971]
[1760160489716,0.7326,3781.6,3778.8,1.92]
[1760160489940,0.6336,3781.4,3780.3,2.64529265]
[1760160490142,0.6336,3781.2,3780.4,2.64521705]
[1760160490330,0.099,3781.3,3778.8,1.92]
[1760160490331,0.099,3781.3,3779.3,2.64599264]
[1760160490533,0.099,3781.9,3780.4,2.64518138]
[1760160490766,2.64223587,3784.7,3779.5,2.64585262]
[1760160490767,0.099,3781.8,3779.5,2.64585262]
[1760160490938,0.099,3781.7,3779.4,0.468]
[1760160491144,0.099,3781.7,3780.8,2.64489395]
[1760160491338,2.75011848,3782.0,3779.4,3.1139182]
[1760160491339,0.099,3781.6,3779.4,3.1139182]
[1760160491535,0.099,3781.6,3779.6,2.64778262]
[1760160492135,0.7396,3782.0,3779.6,2.64778262]
[1760160492136,0.099,3781.5,3779.6,0.002]
[1760160492345,0.6336,3781.4,3779.6,0.002]
[1760160492646,0.6336,3780.9,3779.8,2.64562559]
[1760160492860,0.7326,3780.9,3779.7,2.64571262]
[1760160493045,0.4148855,3781.3,3779.6,0.002]
[1760160493559,0.4148855,3781.3,3779.7,2.64571262]
[1760160493760,0.4148855,3781.3,3780.8,2.64493892]
[1760160494062,0.5208151,3782.0,3780.1,0.2288]
[1760160494268,0.5208151,3782.0,3781.9,2.64417356]
[1760160494269,0.4148151,3782.0,3781.9,2.64417356]
[1760160494450,0.0991,3782.7,3780.6,0.468]
[1760160494654,0.0991,3782.7,3780.7,2.64494878]
[1760160494840,0.0991,3782.7,3781.5,2.64442779]
[1760160495046,0.0991,3782.7,3780.7,2.64501282]
[1760160495242,0.0991,3782.7,3780.6,0.468]
[1760160495447,0.0991,3782.7,3781.7,2.64424612]
[1760160495848,0.0991,3782.7,3781.7,2.64430629]
[1760160496064,2.74280012,3782.6,3779.7,0.468]
[1760160496371,0.6336,3782.2,3780.0,2.64550264]
[1760160496665,3.27745707,3782.4,3780.1,3.11343266]
[1760160496963,0.6336,3782.4,3781.4,2.64452181]
[1760160497168,2.64395649,3782.3,3781.2,2.64459776]
[1760160497491,0.6336,3782.4,3781.2,2.64459448]
[1760160497665,0.0991,3782.5,3781.8,2.64422144]
[1760160497841,0.106,3782.9,3781.0,2.64480296]
[1760160498042,0.106,3782.9,3780.9,0.468]
[1760160498255,0.106,3782.9,3782.3,2.64387505]
[1760160498455,0.106,3782.9,3782.4,2.64377844]
[1760160498767,0.106,3782.9,3781.4,0.468]
[1760160498768,0.2051,3782.9,3780.8,0.468]
[1760160498969,0.2051,3782.9,3781.4,2.64446037]
[1760160498970,2.64361434,3782.7,3781.4,2.64446037]
[1760160499270,0.0991,3782.8,3780.9,2.64487291]
[1760160499564,0.106,3782.9,3782.2,2.6438951]
[1760160499763,0.106,3782.9,3781.4,0.468]
[1760160499965,0.0991,3783.5,3782.5,2.64371287]
[1760160499966,0.1059,3783.3,3782.5,2.64371287]
[1760160500263,0.1059,3783.3,3781.6,2.64438332]
[1760160500466,0.41466183,3783.7,3781.8,2.64424348]
[1760160500635,2.64306045,3783.5,3781.8,2.64424348]
[1760160500832,0.204,3783.6,3780.8,2.64488001]
[1760160501036,2.64312523,3783.4,3781.1,2.64473301]
[1760160501246,2.6432742,3783.2,3782.2,2.64395072]
[1760160501449,2.6434047,3783.0,3780.9,0.468]
[1760160501646,1.04827377,3783.0,3780.9,0.468]
[1760160501843,2.64355089,3782.8,3781.8,2.6442328]
[1760160502276,2.64348424,3782.9,3780.9,0.468]
[1760160502577,0.41467377,3783.0,3780.9,0.468]
[1760160502778,3.05809882,3783.0,3780.9,0.468]
[1760160503102,0.41467377,3783.0,3782.1,2.64402848]
[1760160503547,3.05809101,3783.0,3782.2,2.64395029]
[1760160503752,0.41467377,3783.0,3782.2,2.64395029]
[1760160504165,0.41467377,3783.0,3781.5,0.468]
[1760160504360,0.41467377,3783.0,3782.6,2.64365726]
[1760160504685,0.132,3781.8,3781.5,0.468]
[1760160505003,2.64290699,3783.8,3781.5,0.468]
[1760160505004,2.64175659,3785.4,3781.9,2.64414439]
[1760160505187,2.64228009,3784.7,3783.0,2.64340363]
[1760160505348,2.64229318,3784.6,3783.6,2.64297316]
[1760160505551,2.64210227,3784.9,3783.6,2.64297316]
[1760160505859,2.64210227,3784.9,3782.5,0.6968]
[1760160505860,14.27818629,3785.3,3783.7,2.64288859]
[1760160506066,2.64227799,3784.7,3783.7,2.64290735]
[1760160506272,2.64179579,3785.4,3783.4,0.468]
[1760160506474,14.27818629,3786.3,3784.3,2.6424344]
[1760160506475,2.64125823,3786.1,3784.3,2.6424344]
[1760160506973,2.64241146,3784.5,3782.8,0.468]
[1760160507382,14.27818629,3785.6,3782.8,0.468]
[1760160507383,4.56166775,3785.5,3782.9,2.64347458]
[1760160507585,1.92,3785.7,3784.0,2.64270135]
[1760160507791,1.92,3785.7,3783.2,2.64320664]
[1760160507792,14.27818629,3786.3,3783.2,0.132]
[1760160507961,14.27818629,3786.3,3783.5,2.64298775]
[1760160507962,14.27818629,3785.6,3783.5,2.64298775]
[1760160508161,2.64231747,3784.6,3783.6,2.64298357]
[1760160508358,2.64179853,3785.3,3783.3,2.64319193]
[1760160508359,0.6336,3785.3,3783.3,2.64319193]
[1760160508568,0.6336,3785.3,3782.5,3.00450842]
[1760160508569,2.64286852,3783.8,3782.5,0.2288]
[1760160508757,2.5536,3784.1,3782.2,2.64396171]
[1760160508986,0.6336,3784.0,3782.3,2.64383094]
[1760160509180,0.6336,3784.0,3781.5,0.2288]
[1760160509379,2.96829633,3785.3,3768.5,121.17040921]
[1760160509380,2.6439564,3782.3,3780.3,0.2288]
[1760160509578,14.27818629,3782.7,3780.3,0.2288]
[1760160509579,1.92,3782.4,3780.5,2.64508638]
[1760160509786,0.6336,3782.3,3780.3,0.2288]
[1760160509988,2.64430886,3781.8,3780.6,2.64502925]
[1760160510302,0.6336,3782.3,3780.2,2.64535165]
[1760160510303,2.64458661,3781.4,3780.2,2.64535165]
[1760160510595,2.64448125,3781.5,3780.3,2.64525787]
[1760160510782,2.64448125,3781.5,3779.6,3.11577825]
[1760160510783,2.5536,3781.9,3779.6,0.47]
[1760160511180,2.64452914,3781.4,3780.3,2.64527225]
[1760160511767,2.64460938,3781.3,3780.3,2.64527225]
[1760160511964,2.64452416,3781.4,3780.4,2.64520921]
[1760160512164,2.64452416,3781.4,3780.3,2.64528672]
[1760160512364,2.6445069,3781.5,3780.4,2.64521376]
[1760160512699,0.6336,3782.4,3779.8,0.468]
[1760160513016,0.6336,3782.1,3780.7,2.64495809]
[1760160513166,2.64432237,3781.7,3780.5,2.64508655]
[1760160513365,3.27735146,3782.6,3780.1,0.2288]
[1760160513366,2.64424237,3781.9,3780.1,0.2288]
[1760160513583,3.05915342,3781.7,3780.7,2.64495939]
[1760160513783,0.41483625,3781.7,3780.0,2.6454932]
[1760160513984,0.41483625,3781.7,3779.7,2.64571262]
[1760160514197,0.41483625,3781.7,3779.6,0.002]
[1760160514198,2.64497286,3780.8,3779.6,0.002]
[1760160514377,2.5536,3781.4,3779.6,0.002]
[1760160514691,2.6450208,3780.7,3779.6,0.002]
[1760160514897,2.64395222,3782.3,3779.6,0.002]
[1760160514898,0.6336,3780.6,3779.6,0.002]
[1760160515078,2.64571262,3779.7,3779.6,0.002]
[1760160515470,4.56571262,3779.7,3779.6,0.002]
[1760160516065,5.19931262,3779.7,3779.6,0.002]
[1760160517009,1.92,3779.7,3779.6,0.002]
[1760160517179,1.92,3781.3,3779.6,0.002]
[1760160517375,13.0398993,3781.4,3779.6,0.002]
[1760160517607,2.64571262,3779.7,3779.6,0.002]
[1760160517804,1.92,3780.5,3779.6,0.002]
[1760160518116,13.0398993,3781.4,3779.6,0.002]
[1760160518117,1.92,3781.1,3779.6,0.002]
[1760160518278,2.64467447,3781.2,3779.6,0.002]
[1760160518279,0.6336,3780.8,3779.6,0.002]
[1760160518474,3.27931262,3779.7,3779.6,0.002]
[1760160518680,2.5536,3779.6,3776.2,0.6679]
[1760160518921,2.64665445,3778.4,3777.3,2.64739364]
[1760160519079,2.64666418,3778.4,3777.3,2.64739364]
[1760160519280,13.3663372,3780.4,3777.0,2.64756396]
[1760160519281,0.41518226,3778.8,3777.0,0.4425]
[1760160519509,0.41518226,3778.8,3776.5,2.64794049]
[1760160519510,2.5536,3778.7,3776.5,2.64794049]
[1760160519820,2.5536,3778.7,3776.6,0.0008]
[1760160519821,0.6336,3778.7,3776.6,0.0008]
[1760160520046,0.41518226,3778.8,3776.4,0.0008]
[1760160520176,13.0398993,3779.7,3776.4,0.0008]
[1760160520177,2.64668969,3778.4,3776.4,0.0008]
[1760160520373,3.27983032,3779.0,3776.4,0.0008]
[1760160520374,0.6336,3779.4,3776.5,0.4425]
[1760160520584,0.41520355,3778.3,3776.5,0.4425]
[1760160520785,2.5536,3779.2,3776.8,2.64774412]
[1760160520987,0.41516951,3778.9,3777.1,2.64750497]
[1760160521218,0.41516951,3778.9,3778.0,2.6468909]
[1760160521430,1.92,3778.3,3776.3,0.4425]
[1760160521590,2.64688826,3778.1,3777.0,2.64759328]
[1760160521930,2.64677287,3778.2,3777.1,2.64747704]
[1760160522113,0.6336,3779.0,3776.3,0.4425]
[1760160522421,0.41522929,3778.1,3776.5,2.64795445]
[1760160522593,15.68474569,3781.0,3776.8,2.64768442]
[1760160522915,15.68474569,3781.0,3776.2,0.2254]
[1760160522916,0.41516545,3779.4,3778.5,2.64648475]
[1760160523123,0.41516545,3779.4,3776.9,0.4425]
[1760160523124,2.645921,3779.5,3777.5,2.64718531]
[1760160523333,2.64649617,3778.6,3777.5,2.64724027]
[1760160523485,0.41511551,3779.2,3777.6,2.64713488]
[1760160523692,2.64671367,3778.3,3776.9,2.64767401]
[1760160523898,0.6336,3779.1,3776.9,2.64767401]
[1760160524210,1.92,3778.9,3776.8,0.4425]
[1760160524411,0.6336,3779.1,3777.5,2.64719254]
[1760160524614,3.27991898,3778.9,3777.0,2.64758576]
[1760160524797,3.27991898,3778.9,3777.1,2.6475192]
[1760160524798,0.41521965,3778.4,3777.1,2.6475192]
[1760160524993,0.41521965,3778.4,3776.3,2.64809469]
[1760160524994,2.6468145,3778.2,3777.2,2.64746103]
[1760160525528,2.6468145,3778.2,3776.1,0.2164]
[1760160525529,2.646763,3778.2,3774.5,2.6493525]
[1760160525849,2.64778296,3776.8,3774.8,2.64908115]
[1760160526144,2.64718339,3777.6,3775.6,0.0008]
[1760160526346,0.6336,3777.0,3775.6,0.0008]
[1760160526493,0.3264379,3777.8,3775.2,2.64886269]
[1760160526494,2.64809457,3776.4,3775.2,2.64886269]
[1760160526691,2.5536,3777.1,3773.9,2.64971557]
[1760160526692,2.64830149,3776.1,3773.9,2.64971557]
[1760160526924,1.92,3776.6,3773.2,0.2254]
[1760160526925,0.6336,3776.5,3774.2,2.64950501]
[1760160527103,0.6336,3776.4,3774.4,2.6494058]
[1760160527422,1.92,3777.8,3774.1,0.2254]
[1760160527621,1.92,3778.2,3774.6,0.4425]
[1760160527925,2.64760735,3777.0,3775.9,2.64836912]
[1760160528122,3.28080042,3777.6,3775.6,2.64858565]
[1760160528326,3.28085297,3777.6,3775.5,2.65596205]
[1760160528627,4.56740854,3777.3,3775.5,0.00732839]
[1760160528838,2.64651745,3778.6,3775.5,0.00732839]
[1760160528839,2.64601766,3779.3,3775.7,2.6485155]
[1760160529120,13.0398993,3779.5,3775.8,3.09092404]
[1760160529121,2.64660795,3778.5,3775.8,3.09092404]
[1760160529329,13.0398993,3779.5,3775.9,3.22287522]
[1760160529631,2.64655747,3778.5,3776.3,2.64809469]
[1760160529829,13.0398993,3779.5,3776.5,2.64795445]
[1760160529997,1.92,3778.5,3776.4,0.7999]
[1760160530310,2.64599264,3779.3,3776.4,0.6679]
[1760160530512,13.0398993,3779.5,3776.6,2.64788434]
[1760160530513,0.6336,3779.2,3776.6,2.64788434]
[1760160530690,13.0398993,3779.5,3776.4,0.2254]
[1760160530895,0.099,3780.7,3776.4,1.92]
[1760160531096,0.1055,3780.9,3777.2,1.92]
[1760160531097,0.41504474,3779.2,3777.2,1.92]
[1760160531339,0.41504474,3779.2,3778.9,2.64626029]
[1760160531643,0.3219,3779.9,3779.1,2.64613262]
[1760160531816,0.41505508,3780.3,3778.4,0.2339]
[1760160532138,0.41505508,3780.3,3780.0,2.64548854]
[1760160532439,0.41505508,3780.3,3779.9,2.64557263]
[1760160532647,0.51525508,3780.3,3778.4,0.2339]
[1760160532813,0.51525508,3780.3,3779.3,2.64596869]
[1760160533014,0.41505508,3780.3,3779.8,2.64563432]
[1760160533220,0.41505508,3780.3,3779.5,2.64578967]
[1760160533521,0.41505508,3780.3,3775.6,1.33495282]
[1760160533522,0.2217,3779.6,3776.7,2.64777422]
[1760160533834,0.2217,3779.6,3776.8,0.4506]
[1760160533835,0.1015,3779.5,3776.8,0.4506]
[1760160534042,2.74735641,3779.5,3778.2,2.64672157]
[1760160534245,0.41509945,3779.3,3777.4,3.09790061]
[1760160534444,0.41509945,3779.3,3774.1,0.2254]
[1760160534445,0.41509945,3779.3,3779.0,2.64620246]
[1760160534812,0.41509945,3779.3,3778.1,0.2339]
[1760160535059,0.099,3780.3,3778.1,0.2339]
[1760160535240,0.099,3780.3,3779.7,2.64567223]
[1760160535445,0.1055,3780.9,3778.8,0.4506]
[1760160535739,0.1055,3780.9,3779.9,2.64555631]
[1760160535941,0.1055,3780.9,3778.3,0.4506]
[1760160536146,2.64515513,3780.5,3778.3,0.4506]
[1760160536344,0.1055,3780.9,3778.5,2.64649214]
[1760160536345,0.6336,3780.3,3778.5,2.64649214]
[1760160536655,0.6336,3780.3,3777.7,1.92]
[1760160536656,3.27911198,3780.0,3778.9,2.64626984]
[1760160536810,0.2229,3779.9,3778.9,2.64626984]
[1760160537016,0.2229,3779.9,3777.8,2.64704325]
[1760160537514,0.1002,3780.7,3779.8,2.6456401]
[1760160537852,0.1002,3780.7,3779.5,2.64580789]
[1760160538146,0.1002,3780.7,3779.2,2.64601244]
[1760160538147,0.1002,3780.7,3779.4,2.6459204]
[1760160538346,0.6336,3780.5,3778.7,2.3706]
[1760160538513,2.64534552,3780.3,3778.5,1.92]
[1760160538712,3.37919532,3780.2,3778.8,2.64628852]
[1760160538938,0.6336,3780.0,3778.0,0.4506]
[1760160539154,0.2217,3779.9,3778.2,2.646763]
[1760160539322,0.1015,3780.7,3779.4,2.64588447]
[1760160539521,2.64514798,3780.6,3778.4,2.6466229]
[1760160539713,0.1055,3780.9,3777.7,0.4506]
[1760160539714,0.1015,3780.5,3777.7,0.4506]
[1760160539917,0.6336,3780.1,3777.1,0.4506]
[1760160540158,0.6336,3779.9,3777.1,0.4506]
[1760160540460,2.64620998,3779.0,3777.7,2.64706122]
[1760160540658,2.64620998,3779.0,3777.1,0.4506]
[1760160540659,0.1026,3778.9,3778.1,2.6468257]
[1760160540815,0.6336,3778.8,3775.1,0.4506]
[1760160541014,2.64658768,3778.5,3777.4,2.64726597]
[1760160541240,0.1026,3778.4,3777.2,2.64744456]
[1760160541443,2.74923394,3778.4,3777.0,2.64756352]
[1760160541758,2.646763,3778.2,3777.0,2.64754373]
[1760160541961,0.6336,3778.2,3776.2,0.4506]
[1760160542123,0.1026,3778.1,3776.2,0.4506]
[1760160542319,0.6336,3778.6,3777.0,2.64754178]
[1760160542320,2.74950312,3778.0,3777.0,2.64754178]
[1760160542514,0.2758,3777.9,3775.7,0.4506]
[1760160542719,2.75034558,3777.8,3775.7,0.4506]
[1760160542923,0.41528593,3777.8,3775.9,2.64837522]
[1760160543141,0.1033,3777.7,3775.9,2.64837522]
[1760160543352,2.75041353,3777.7,3775.9,2.64837522]
[1760160543620,2.75041353,3777.7,3776.6,2.64783695]
[1760160543953,0.1033,3777.7,3776.7,2.64781393]
[1760160544130,0.1033,3777.7,3775.7,0.4506]
[1760160544327,0.2741,3778.4,3776.6,2.64785725]
[1760160544522,2.64609465,3779.2,3776.4,0.4506]
[1760160544523,2.64669608,3778.3,3776.4,0.4506]
[1760160544725,0.4152267,3778.5,3777.1,2.64752118]
[1760160544726,2.74576801,3778.2,3777.1,2.64752118]
[1760160544948,2.64683555,3778.1,3777.1,2.64752118]
[1760160545149,2.64683555,3778.1,3777.1,2.64753002]
[1760160545150,0.099,3778.0,3777.1,2.64753002]
[1760160545355,0.099,3778.0,3777.4,2.64726234]
[1760160545521,0.099,3778.0,3777.5,2.64724862]
[1760160545721,0.099,3778.7,3777.7,2.64708531]
[1760160545952,0.099,3778.7,3778.0,2.64689784]
[1760160546142,0.099,3778.7,3778.1,2.64683026]
[1760160546352,0.099,3778.6,3776.2,2.64816482]
[1760160546541,0.1761,3777.8,3776.9,2.6476343]
[1760160546738,0.2759,3777.8,3776.1,2.64823495]
[1760160546931,0.2759,3777.8,3776.0,0.4506]
[1760160547126,0.0998,3777.7,3775.5,0.4506]
[1760160547528,0.1761,3777.8,3775.5,0.4506]
[1760160547529,0.1761,3777.8,3775.6,2.64858565]
[1760160547838,2.92300118,3777.8,3776.5,2.64792443]
[1760160548038,0.2759,3777.8,3775.9,2.64837522]
[1760160548362,2.64615514,3779.1,3775.7,0.439]
[1760160548363,0.099,3778.8,3778.0,2.64683353]
[1760160548547,0.099,3778.8,3778.1,2.64682568]
[1760160548750,0.099,3778.8,3777.1,0.6666]
[1760160548751,0.099,3778.8,3777.3,2.64737319]
[1760160548927,0.099,3779.4,3777.5,2.64725347]
[1760160549132,0.13817867,3780.0,3776.8,0.439]
[1760160549133,0.099,3779.1,3776.8,0.439]
[1760160549334,2.64652628,3778.6,3776.9,2.64767401]
[1760160549534,0.099,3778.5,3776.4,2.64802457]
[1760160549843,0.099,3778.5,3777.6,2.64712008]
[1760160550074,2.64703675,3777.9,3776.1,0.2276]
[1760160550342,0.2759,3777.8,3776.7,2.64781132]
[1760160550541,0.2759,3777.8,3776.8,2.64769259]
[1760160550542,2.92298724,3777.8,3776.8,2.64769259]
[1760160550735,2.64712356,3777.7,3776.7,2.6477808]
[1760160551141,2.9229496,3777.8,3776.8,2.64773515]
[1760160551339,2.9229496,3777.8,3775.9,0.439]
[1760160551340,2.9229496,3777.8,3776.9,2.6476671]
[1760160551562,2.9229496,3777.8,3776.9,2.64761165]
[1760160551862,0.2759,3777.8,3775.9,0.439]
[1760160552230,0.2759,3777.8,3776.9,2.64763582]
[1760160552431,2.64712076,3777.7,3776.5,2.64790399]
[1760160552664,2.64764365,3777.0,3775.3,0.441]
[1760160552844,0.099,3777.0,3775.5,2.6486558]
[1760160553047,0.6336,3777.6,3775.3,0.002]
[1760160553048,0.099,3776.9,3775.3,0.002]
[1760160553337,2.64247488,3784.4,3779.7,2.64571028]
[1760160553548,2.64247488,3784.4,3777.5,0.2276]
[1760160553549,0.1796,3783.7,3779.8,2.73907801]
[1760160553747,0.13814377,3782.3,3780.0,0.6336]
[1760160553946,0.1796,3783.7,3780.1,0.68483815]
[1760160554171,0.1796,3783.7,3780.2,0.24583815]
[1760160554356,0.6751985,3783.6,3780.3,0.24583815]
[1760160554556,0.97521322,3783.6,3780.4,0.24583815]
[1760160554865,0.97521322,3783.6,3780.5,0.24583815]
[1760160554866,3.61821828,3783.6,3780.5,0.24583815]
[1760160555069,0.1796,3783.7,3779.7,1.92]
[1760160555368,0.099,3783.6,3781.4,2.64446984]
[1760160555670,0.45768056,3783.6,3779.8,0.439]
[1760160555964,2.64313068,3783.4,3781.4,2.64446039]
[1760160556168,0.099,3783.3,3779.8,0.439]
[1760160556372,0.099,3783.2,3780.0,2.64550264]
[1760160556573,0.099,3783.2,3782.4,2.64377347]
[1760160556773,0.099,3783.2,3780.9,0.439]
[1760160556973,0.1796,3783.7,3778.7,1.88709513]
[1760160556974,0.099,3783.1,3778.7,1.88709513]
[1760160557276,2.5536,3782.1,3779.0,0.439]
[1760160557479,0.6336,3781.9,3779.0,0.439]
[1760160557676,0.6336,3781.9,3779.1,2.64613267]
[1760160557866,0.6336,3781.9,3779.0,0.439]
[1760160557867,2.5536,3781.7,3779.0,0.439]
[1760160558068,0.6336,3781.5,3778.6,2.6464794]
[1760160558273,1.92,3782.2,3776.9,0.2276]
[1760160558274,2.5536,3781.1,3776.9,0.2276]
[1760160558576,0.099,3781.4,3777.4,0.439]
[1760160558577,0.6336,3780.5,3777.4,0.439]
[1760160558746,2.64420684,3781.9,3778.0,2.64687025]
[1760160558747,5.19892475,3780.3,3778.0,2.64687025]
[1760160558946,0.6336,3780.3,3777.2,2.64741852]
[1760160559146,2.27868056,3781.8,3776.8,3.08671846]
[1760160559147,0.6336,3779.6,3777.8,2.64698348]
[1760160559373,2.64572903,3779.7,3776.3,0.2276]
[1760160559374,0.6336,3779.4,3777.7,2.6470712]
[1760160559546,0.6336,3779.4,3776.6,2.64787819]
[1760160559547,0.6336,3779.2,3776.6,2.64787819]
[1760160559748,0.6336,3778.5,3776.6,2.64785952]
[1760160559981,0.6336,3778.3,3776.7,2.64781141]
[1760160560149,0.099,3778.2,3775.4,0.70082932]
[1760160560476,0.99999999,3782.0,3775.4,0.70082932]
[1760160560477,0.7326,3778.1,3775.5,0.47019397]
[1760160560677,0.7326,3778.1,3775.7,2.6485155]
[1760160560880,2.64593484,3779.4,3775.5,0.47019397]
[1760160560881,0.6336,3777.9,3776.3,2.6480297]
[1760160561056,0.099,3777.8,3776.1,2.64821448]
[1760160561379,1.69160877,3779.6,3775.8,0.02905766]
[1760160561380,1.92,3777.2,3775.8,0.02905766]
[1760160561582,0.0998,3777.1,3775.8,0.02905766]
[1760160561781,0.2778,3777.1,3775.8,0.02905766]
[1760160561954,0.2778,3777.1,3775.9,2.64837522]
[1760160562154,0.2778,3777.1,3775.4,2.64867734]
[1760160562351,0.2778,3777.1,3775.2,2.64885094]
[1760160562552,2.64517827,3780.5,3776.9,2.64761465]
[1760160562553,0.099,3777.7,3776.9,2.64761465]
[1760160562752,0.099,3777.7,3775.9,0.439]
[1760160562984,2.64459911,3781.3,3776.2,2.64816482]
[1760160563184,0.099,3778.5,3776.3,0.439]
[1760160563373,0.1788,3778.4,3775.9,2.64837522]
[1760160563572,0.1788,3778.4,3776.1,0.3596]
[1760160563765,0.1788,3778.4,3777.3,2.64734956]
[1760160563964,1.32345198,3789.8,3784.0,2.64270613]
[1760160564286,0.0806,3786.3,3784.0,2.64270613]
[1760160564503,0.0806,3786.3,3784.0,0.99999999]
[1760160564793,0.0806,3785.2,3783.7,0.99999999]
[1760160564990,0.0806,3785.2,3782.5,1.16800025]
[1760160564991,0.0806,3785.2,3783.8,0.24496137]
[1760160565188,0.0806,3784.8,3783.9,0.24496137]
[1760160565362,0.0806,3784.7,3784.0,0.24496137]
[1760160565557,0.0806,3784.6,3784.1,0.24496137]
[1760160565757,0.0806,3784.5,3784.2,0.24496137]
[1760160566068,0.6336,3784.3,3782.8,2.74349662]
[1760160566271,0.0806,3784.4,3782.8,2.74349662]
[1760160566272,0.0806,3784.4,3782.8,2.74349149]
[1760160566455,0.0806,3784.4,3782.9,0.09996531]
[1760160566852,0.0806,3784.4,3783.3,2.64313494]
[1760160567054,0.001,3784.8,3783.8,2.64281379]
[1760160567285,0.001,3784.8,3783.2,0.99999999]
[1760160567286,0.001,3784.8,3783.4,2.64309687]
[1760160567584,0.001,3784.8,3783.6,2.64296079]
[1760160567789,0.001,3784.8,3783.5,0.01730921]
[1760160567963,0.001,3784.8,3783.7,0.0173083]
[1760160569270,0.6346,3784.8,3783.7,0.0173083]
[1760160569500,2.5536,3783.8,3783.7,0.0173083]
[1760160570896,2.5536,3783.7,3781.2,0.99999999]
[1760160571070,0.6336,3782.9,3781.5,0.99999999]
[1760160571398,2.64234175,3784.6,3780.3,2.64528114]
[1760160571399,0.001,3785.2,3782.4,2.6437792]
[1760160571567,0.001,3785.2,3783.2,0.99999999]
[1760160571773,0.001,3785.2,3783.4,2.64310526]
[1760160572210,0.001,3785.2,3783.3,0.99999999]
[1760160572501,0.001,3785.2,3781.8,2.64424348]
[1760160572502,0.001,3785.2,3782.7,2.64361393]
[1760160572669,0.6336,3784.5,3782.4,0.99999999]
[1760160572870,0.6336,3784.2,3782.4,0.99999999]
[1760160573076,0.6336,3784.0,3782.2,0.99999999]
[1760160573373,3.27638048,3783.9,3782.2,0.99999999]
[1760160573619,2.64315479,3784.8,3780.8,0.439]
[1760160573620,0.6336,3784.1,3780.8,0.439]
[1760160573902,0.6336,3783.2,3781.7,2.64430634]
[1760160574094,0.6336,3783.2,3781.5,0.99999999]
[1760160574095,0.6336,3783.5,3781.5,3.64444555]
[1760160574289,0.6336,3783.5,3782.0,2.64403462]
[1760160574513,0.6336,3783.3,3781.9,0.99999999]
[1760160574917,3.27679679,3783.3,3781.5,0.99999999]
[1760160575215,3.27679679,3783.3,3780.2,2.64530437]
[1760160575216,0.6336,3783.6,3781.9,0.99999999]
[1760160575584,0.6336,3783.6,3780.2,2.64530437]
[1760160575585,0.6336,3783.2,3781.2,0.99999999]
[1760160575784,2.5536,3784.0,3781.2,0.99999999]
[1760160576024,0.6336,3783.1,3781.2,0.99999999]
[1760160576312,0.6336,3782.8,3781.2,0.99999999]
[1760160576476,2.5536,3782.7,3779.7,2.64571262]
[1760160576675,2.64377348,3782.5,3779.4,0.132]
[1760160576892,0.6336,3782.7,3779.1,1.13989502]
[1760160576893,0.6336,3782.6,3780.9,2.64480936]
[1760160577109,0.6336,3782.6,3780.8,2.64493735]
[1760160577305,2.64246796,3784.4,3780.0,2.64543442]
[1760160577306,0.001,3784.8,3780.9,0.99999999]
[1760160577613,0.6336,3782.8,3781.1,3.64471424]
[1760160577810,2.64166918,3785.5,3781.5,0.99999999]
[1760160577984,2.64166918,3785.5,3780.6,2.64508126]
[1760160577985,2.64310449,3784.9,3782.1,2.64401994]
[1760160578185,2.64310449,3784.9,3782.9,2.64347231]
[1760160578186,0.001,3784.9,3782.9,2.64347231]
[1760160578422,0.001,3784.9,3781.9,0.99999999]
[1760160578720,0.001,3784.9,3782.9,2.64343964]
[1760160578721,2.64235307,3784.6,3782.9,2.64343964]
[1760160578926,2.64235307,3784.6,3782.1,2.64403373]
[1760160578927,0.001,3784.8,3782.0,0.99999999]
[1760160579225,2.5536,3783.1,3781.4,3.64451588]
[1760160579406,2.5536,3783.2,3781.9,0.99999999]
[1760160579614,0.6336,3783.2,3781.9,0.99999999]
[1760160579827,0.001,3784.8,3781.9,0.99999999]
[1760160579828,1.92,3784.2,3781.9,0.99999999]
[1760160579976,0.001,3784.8,3782.1,0.99999999]
[1760160580286,1.92,3784.0,3782.2,0.99999999]
[1760160580491,0.6336,3784.3,3782.7,2.64359898]
[1760160580694,2.64315815,3784.8,3783.1,2.64326827]
[1760160581005,2.64315815,3784.8,3782.8,0.99999999]
[1760160581006,0.001,3784.8,3784.1,2.64261338]
[1760160581210,0.001,3784.8,3783.4,0.99999999]
[1760160581428,0.001,3784.8,3783.6,0.99999999]
[1760160581616,0.001,3784.8,3783.5,2.64305537]
[1760160581617,0.001,3784.8,3783.9,2.64275556]
[1760160581956,0.001,3784.8,3783.8,0.99999999]
[1760160581957,0.001,3784.8,3784.3,2.64248279]
[1760160582099,0.001,3784.8,3784.4,2.64236999]
[1760160582445,0.001,3784.8,3783.8,0.99999999]